[Event "Titled Tuesday Blitz April 4 Late 2023"]
[White "Korkmaz, Necmettin"]
[Black "Papasimakopoulos, Alexandros"]
[WhiteFideId "6303285"]
[BlackFideId "4244125"]
[WhiteElo "2097"]
[BlackElo "2359"]
[Result "0-1"]
[Round "10"]
[TimeControl "180+2"]
[Date "2023.04.04"]
[WhiteClock "0:00:07"]
[BlackClock "0:00:08"]

1. e4 {[%clk 0:02:55]}  d6 {[%clk 0:02:48]} 2. d4 {[%clk 0:02:54]}  g6 {[%clk 0:02:44]} 3. Nc3 {[%clk 0:02:54]}  Bg7 {[%clk 0:02:44]} 4. Nf3 {[%clk 0:02:53]}  Nf6 {[%clk 0:02:38]} 5. Be2 {[%clk 0:02:48]}  O-O {[%clk 0:02:34]} 6. O-O {[%clk 0:02:47]}  c6 {[%clk 0:02:35]} 7. a4 {[%clk 0:02:37]}  a5 {[%clk 0:02:31]} 8. h3 {[%clk 0:02:32]}  Na6 {[%clk 0:02:19]} 9. Bg5 {[%clk 0:02:27]}  h6 {[%clk 0:02:18]} 10. Be3 {[%clk 0:02:26]}  Nb4 {[%clk 0:02:15]} 11. Qd2 {[%clk 0:02:25]}  Kh7 {[%clk 0:02:14]} 12. Rad1 {[%clk 0:02:18]}  d5 {[%clk 0:02:13]} 13. e5 {[%clk 0:02:16]}  Ne4 {[%clk 0:02:04]} 14. Nxe4 {[%clk 0:02:15]}  dxe4 {[%clk 0:02:05]} 15. Nh2 {[%clk 0:02:14]}  f5 {[%clk 0:01:58]} 16. exf6 {[%clk 0:02:10]}  exf6 {[%clk 0:01:58]} 17. c4 {[%clk 0:01:57]}  Be6 {[%clk 0:01:54]} 18. d5 {[%clk 0:01:47]}  cxd5 {[%clk 0:01:46]} 19. Bc5 {[%clk 0:01:47]}  dxc4 {[%clk 0:01:34]} 20. Bxb4 {[%clk 0:01:43]}  axb4 {[%clk 0:01:30]} 21. Qxb4 {[%clk 0:01:42]}  Qc7 {[%clk 0:01:22]} 22. Rd6 {[%clk 0:01:31]}  Rfe8 {[%clk 0:01:19]} 23. Rfd1 {[%clk 0:01:27]}  Bf8 {[%clk 0:01:15]} 24. Ng4 {[%clk 0:01:18]}  Bxg4 {[%clk 0:01:05]} 25. hxg4 {[%clk 0:00:55]}  Bxd6 {[%clk 0:00:59]} 26. Rxd6 {[%clk 0:00:55]}  Kg7 {[%clk 0:00:30]} 27. Rb6 {[%clk 0:00:25]}  Re7 {[%clk 0:00:24]} 28. a5 {[%clk 0:00:23]}  Rc8 {[%clk 0:00:17]} 29. Qc3 {[%clk 0:00:17]}  Qe5 {[%clk 0:00:16]} 30. Qxe5 {[%clk 0:00:16]}  fxe5 {[%clk 0:00:14]} 31. Kh2 {[%clk 0:00:11]}  Rc5 {[%clk 0:00:13]} 32. a6 {[%clk 0:00:10]}  bxa6 {[%clk 0:00:12]} 33. Rxa6 {[%clk 0:00:11]}  Rb7 {[%clk 0:00:09]} 34. Ra4 {[%clk 0:00:11]}  Rxb2 {[%clk 0:00:09]} 35. Bxc4 {[%clk 0:00:11]}  Rxf2 {[%clk 0:00:09]} 36. Ra7+ {[%clk 0:00:11]}  Kf8 {[%clk 0:00:09]} 37. Kg3 {[%clk 0:00:10]}  Rf6 {[%clk 0:00:08]} 38. Ra4 {[%clk 0:00:07]}  e3 {[%clk 0:00:08]} 39. g5 {[%clk 0:00:06]}  hxg5 {[%clk 0:00:07]} 40. Kg4 {[%clk 0:00:07]}  Rf4+ {[%clk 0:00:07]} 41. Kxg5 {[%clk 0:00:07]}  Rfxc4 {[%clk 0:00:08]} 42. Ra7 {[%clk 0:00:06]}  e2 {[%clk 0:00:07]} 43. Kf6 {[%clk 0:00:07]}  Rc6+ {[%clk 0:00:08]} 0-1


[Site "https://www.chess.com"]

[Event "Titled Tuesday Blitz April 4 Late 2023"]
[White "Hansen, Sune Berg"]
[Black "marik_spb"]
[WhiteFideId "1400266"]
[WhiteElo "2710"]
[BlackElo "2444"]
[Result "1-0"]
[Round "10"]
[TimeControl "180+2"]
[Date "2023.04.04"]
[WhiteClock "0:01:29"]
[BlackClock "0:00:14"]

1. Nf3 {[%clk 0:03:00]}  Nf6 {[%clk 0:02:58]} 2. g3 {[%clk 0:03:00]}  e6 {[%clk 0:02:55]} 3. Bg2 {[%clk 0:02:59]}  d5 {[%clk 0:02:56]} 4. O-O {[%clk 0:02:58]}  Be7 {[%clk 0:02:55]} 5. d3 {[%clk 0:02:59]}  O-O {[%clk 0:02:56]} 6. Bf4 {[%clk 0:02:58]}  c5 {[%clk 0:02:56]} 7. e4 {[%clk 0:02:56]}  dxe4 {[%clk 0:02:53]} 8. dxe4 {[%clk 0:02:54]}  Nxe4 {[%clk 0:02:49]} 9. Qe2 {[%clk 0:02:54]}  Nf6 {[%clk 0:02:46]} 10. Rd1 {[%clk 0:02:54]}  Qb6 {[%clk 0:02:46]} 11. Na3 {[%clk 0:02:53]}  Nc6 {[%clk 0:02:39]} 12. c3 {[%clk 0:02:51]}  a6 {[%clk 0:02:34]} 13. Nc4 {[%clk 0:02:50]}  Qa7 {[%clk 0:02:34]} 14. a4 {[%clk 0:02:49]}  Bd7 {[%clk 0:02:23]} 15. a5 {[%clk 0:02:44]}  Rad8 {[%clk 0:02:04]} 16. Bc7 {[%clk 0:02:43]}  Rc8 {[%clk 0:02:02]} 17. Bd6 {[%clk 0:02:40]}  Bxd6 {[%clk 0:02:01]} 18. Rxd6 {[%clk 0:02:37]}  Rcd8 {[%clk 0:01:57]} 19. Rad1 {[%clk 0:02:31]}  Bc8 {[%clk 0:01:55]} 20. Rxd8 {[%clk 0:02:25]}  Rxd8 {[%clk 0:01:52]} 21. Rxd8+ {[%clk 0:02:23]}  Nxd8 {[%clk 0:01:53]} 22. Nfe5 {[%clk 0:02:17]}  Qb8 {[%clk 0:01:48]} 23. Qd3 {[%clk 0:02:11]}  Qc7 {[%clk 0:01:41]} 24. Qd6 {[%clk 0:02:10]}  Ne8 {[%clk 0:01:11]} 25. Qxc7 {[%clk 0:02:09]}  Nxc7 {[%clk 0:01:12]} 26. Nd6 {[%clk 0:02:09]}  f6 {[%clk 0:01:13]} 27. Nd3 {[%clk 0:02:03]}  Bd7 {[%clk 0:01:10]} 28. Nxc5 {[%clk 0:02:02]}  Bc6 {[%clk 0:01:09]} 29. Ndxb7 {[%clk 0:01:56]}  Bxg2 {[%clk 0:01:06]} 30. Kxg2 {[%clk 0:01:53]}  Nxb7 {[%clk 0:01:06]} 31. Nxb7 {[%clk 0:01:53]}  Kf7 {[%clk 0:01:05]} 32. c4 {[%clk 0:01:52]}  Ke7 {[%clk 0:01:02]} 33. Kf3 {[%clk 0:01:50]}  Kd7 {[%clk 0:01:02]} 34. b4 {[%clk 0:01:48]}  e5 {[%clk 0:00:42]} 35. Ke4 {[%clk 0:01:46]}  g6 {[%clk 0:00:43]} 36. g4 {[%clk 0:01:42]}  Kc6 {[%clk 0:00:38]} 37. Nc5 {[%clk 0:01:36]}  Kd6 {[%clk 0:00:20]} 38. h4 {[%clk 0:01:31]}  Kc6 {[%clk 0:00:10]} 39. Nxa6 {[%clk 0:01:28]}  Nxa6 {[%clk 0:00:09]} 40. b5+ {[%clk 0:01:28]}  Kb7 {[%clk 0:00:10]} 41. bxa6+ {[%clk 0:01:27]}  Kxa6 {[%clk 0:00:11]} 42. g5 {[%clk 0:01:27]}  fxg5 {[%clk 0:00:12]} 43. hxg5 {[%clk 0:01:26]}  Kxa5 {[%clk 0:00:13]} 44. Kxe5 {[%clk 0:01:27]}  Kb4 {[%clk 0:00:14]} 45. Kf6 {[%clk 0:01:27]}  Kxc4 {[%clk 0:00:13]} 46. Kg7 {[%clk 0:01:28]}  Kd3 {[%clk 0:00:13]} 47. Kxh7 {[%clk 0:01:29]}  Ke2 {[%clk 0:00:14]} 48. Kxg6 {[%clk 0:01:29]} 1-0


[Site "https://www.chess.com"]

[Event "Titled Tuesday Blitz April 4 Late 2023"]
[White "reevecanada"]
[Black "Adewumi, Tanitoluwa"]
[BlackFideId "30966396"]
[WhiteElo "2466"]
[BlackElo "2701"]
[Result "0-1"]
[Round "10"]
[TimeControl "180+2"]
[Date "2023.04.04"]
[WhiteClock "0:00:43"]
[BlackClock "0:01:01"]

1. e4 {[%clk 0:02:59]}  c5 {[%clk 0:03:00]} 2. Nf3 {[%clk 0:02:58]}  e6 {[%clk 0:02:59]} 3. b3 {[%clk 0:02:57]}  Nf6 {[%clk 0:02:58]} 4. Nc3 {[%clk 0:02:56]}  d5 {[%clk 0:02:58]} 5. exd5 {[%clk 0:02:55]}  exd5 {[%clk 0:02:58]} 6. d4 {[%clk 0:02:55]}  cxd4 {[%clk 0:02:59]} 7. Nxd4 {[%clk 0:02:55]}  Bb4 {[%clk 0:02:59]} 8. Bb2 {[%clk 0:02:55]}  O-O {[%clk 0:03:00]} 9. Bd3 {[%clk 0:02:53]}  Qc7 {[%clk 0:02:59]} 10. Qd2 {[%clk 0:02:50]}  Re8+ {[%clk 0:02:59]} 11. Kd1 {[%clk 0:02:46]}  Nc6 {[%clk 0:02:33]} 12. a3 {[%clk 0:02:40]}  Bg4+ {[%clk 0:02:23]} 13. f3 {[%clk 0:02:14]}  Nxd4 {[%clk 0:02:19]} 14. axb4 {[%clk 0:01:56]}  Nxf3 {[%clk 0:02:14]} 15. gxf3 {[%clk 0:01:54]}  Bxf3+ {[%clk 0:02:14]} 16. Kc1 {[%clk 0:01:54]}  Bxh1 {[%clk 0:02:10]} 17. Qd1 {[%clk 0:01:54]}  Qxh2 {[%clk 0:02:06]} 18. Kb1 {[%clk 0:01:53]}  a6 {[%clk 0:01:56]} 19. Ka2 {[%clk 0:01:51]}  d4 {[%clk 0:01:40]} 20. Ne2 {[%clk 0:01:49]}  Bf3 {[%clk 0:01:39]} 21. Qd2 {[%clk 0:01:42]}  Bxe2 {[%clk 0:01:36]} 22. Re1 {[%clk 0:01:43]}  Ne4 {[%clk 0:01:32]} 23. Rxe2 {[%clk 0:01:30]}  Qxe2 {[%clk 0:01:32]} 24. Qf4 {[%clk 0:01:19]}  Nc3+ {[%clk 0:01:26]} 25. Bxc3 {[%clk 0:01:16]}  Qe5 {[%clk 0:01:16]} 26. Qh4 {[%clk 0:01:03]}  dxc3 {[%clk 0:01:14]} 27. Qxh7+ {[%clk 0:01:03]}  Kf8 {[%clk 0:01:14]} 28. Qh8+ {[%clk 0:01:04]}  Ke7 {[%clk 0:01:15]} 29. Qh4+ {[%clk 0:01:04]}  g5 {[%clk 0:01:15]} 30. Qf2 {[%clk 0:01:01]}  a5 {[%clk 0:01:15]} 31. b5 {[%clk 0:00:58]}  a4 {[%clk 0:01:15]} 32. b4 {[%clk 0:00:55]}  Red8 {[%clk 0:01:03]} 33. Bc4 {[%clk 0:00:53]}  f6 {[%clk 0:01:02]} 34. Qb6 {[%clk 0:00:51]}  Rac8 {[%clk 0:01:01]} 35. Bf1 {[%clk 0:00:43]}  Qe6+ {[%clk 0:01:01]} 0-1


[Site "https://www.chess.com"]

[Event "Titled Tuesday Blitz April 4 Late 2023"]
[White "Aggelis, Nikolaos"]
[Black "Goroshkov, Maksym"]
[WhiteFideId "4213220"]
[BlackFideId "14142716"]
[WhiteElo "2189"]
[BlackElo "2322"]
[Result "1-0"]
[Round "10"]
[TimeControl "180+2"]
[Date "2023.04.04"]
[WhiteClock "0:01:13"]
[BlackClock "0:01:48"]

1. e4 {[%clk 0:02:45]}  e5 {[%clk 0:02:59]} 2. Nf3 {[%clk 0:02:45]}  d6 {[%clk 0:02:59]} 3. d4 {[%clk 0:02:44]}  Bg4 {[%clk 0:02:58]} 4. dxe5 {[%clk 0:02:43]}  Nd7 {[%clk 0:02:59]} 5. h3 {[%clk 0:02:42]}  Bh5 {[%clk 0:02:58]} 6. g4 {[%clk 0:02:36]}  Bg6 {[%clk 0:02:57]} 7. Bf4 {[%clk 0:02:33]}  dxe5 {[%clk 0:02:49]} 8. Nxe5 {[%clk 0:02:28]}  Nxe5 {[%clk 0:02:48]} 9. Qxd8+ {[%clk 0:02:23]}  Rxd8 {[%clk 0:02:49]} 10. Bxe5 {[%clk 0:02:23]}  Bxe4 {[%clk 0:02:49]} 11. Rg1 {[%clk 0:02:22]}  Bxc2 {[%clk 0:02:47]} 12. Nc3 {[%clk 0:02:12]}  c6 {[%clk 0:02:40]} 13. Rg3 {[%clk 0:02:02]}  f6 {[%clk 0:02:37]} 14. Bc7 {[%clk 0:01:59]}  Rd7 {[%clk 0:02:35]} 15. Re3+ {[%clk 0:01:58]}  Re7 {[%clk 0:02:29]} 16. Kd2 {[%clk 0:01:52]}  Rxe3 {[%clk 0:02:27]} 17. Kxe3 {[%clk 0:01:49]}  Bg6 {[%clk 0:02:26]} 18. Rd1 {[%clk 0:01:44]}  Bc5+ {[%clk 0:02:23]} 19. Kf3 {[%clk 0:01:42]}  h5 {[%clk 0:02:16]} 20. Rd8+ {[%clk 0:01:40]}  Ke7 {[%clk 0:02:15]} 21. Bc4 {[%clk 0:01:29]}  hxg4+ {[%clk 0:02:14]} 22. hxg4 {[%clk 0:01:25]}  Bf7 {[%clk 0:02:11]} 23. Bxf7 {[%clk 0:01:21]}  Kxf7 {[%clk 0:02:12]} 24. Rb8 {[%clk 0:01:19]}  Rh2 {[%clk 0:02:04]} 25. Ne4 {[%clk 0:01:17]}  Bd4 {[%clk 0:01:56]} 26. Bxh2 {[%clk 0:01:15]}  Ke6 {[%clk 0:01:48]} 27. Rxg8 {[%clk 0:01:13]} 1-0


[Site "https://www.chess.com"]

[Event "Titled Tuesday Blitz April 4 Late 2023"]
[White "Mendez Fortes, Eduardo Jesus"]
[Black "Mei, Austin"]
[WhiteFideId "3502376"]
[BlackFideId "30948479"]
[WhiteElo "2307"]
[BlackElo "2125"]
[Result "1-0"]
[Round "10"]
[TimeControl "180+2"]
[Date "2023.04.04"]
[WhiteClock "0:00:14"]
[BlackClock "0:00:03"]

1. e4 {[%clk 0:03:00]}  e5 {[%clk 0:02:59]} 2. Nf3 {[%clk 0:03:00]}  Nc6 {[%clk 0:02:56]} 3. Bb5 {[%clk 0:03:01]}  a6 {[%clk 0:02:56]} 4. Ba4 {[%clk 0:03:01]}  Nf6 {[%clk 0:02:54]} 5. O-O {[%clk 0:03:01]}  Nxe4 {[%clk 0:02:54]} 6. d4 {[%clk 0:03:01]}  b5 {[%clk 0:02:54]} 7. Bb3 {[%clk 0:03:01]}  d5 {[%clk 0:02:55]} 8. dxe5 {[%clk 0:03:02]}  Be6 {[%clk 0:02:55]} 9. c3 {[%clk 0:03:02]}  Nc5 {[%clk 0:02:52]} 10. Bc2 {[%clk 0:03:02]}  Bg4 {[%clk 0:02:52]} 11. h3 {[%clk 0:02:59]}  Bh5 {[%clk 0:02:42]} 12. Bf4 {[%clk 0:02:55]}  Qd7 {[%clk 0:02:40]} 13. Nbd2 {[%clk 0:02:52]}  Be7 {[%clk 0:02:37]} 14. Nb3 {[%clk 0:02:51]}  Ne6 {[%clk 0:02:37]} 15. Bh2 {[%clk 0:02:45]}  Rd8 {[%clk 0:02:36]} 16. Re1 {[%clk 0:02:36]}  d4 {[%clk 0:02:36]} 17. cxd4 {[%clk 0:02:36]}  Ncxd4 {[%clk 0:02:35]} 18. Nbxd4 {[%clk 0:02:36]}  Nxd4 {[%clk 0:02:34]} 19. Qxd4 {[%clk 0:02:34]}  Qxd4 {[%clk 0:02:32]} 20. Nxd4 {[%clk 0:02:35]}  Rxd4 {[%clk 0:02:32]} 21. f4 {[%clk 0:02:26]}  Rd2 {[%clk 0:02:22]} 22. Be4 {[%clk 0:02:25]}  Be2 {[%clk 0:01:54]} 23. Bc6+ {[%clk 0:02:22]}  Kd8 {[%clk 0:01:51]} 24. b3 {[%clk 0:02:22]}  Kc8 {[%clk 0:01:47]} 25. f5 {[%clk 0:02:07]}  Rhd8 {[%clk 0:01:35]} 26. Bf4 {[%clk 0:02:00]}  Rc2 {[%clk 0:01:31]} 27. Be4 {[%clk 0:01:59]}  Bd3 {[%clk 0:01:30]} 28. Bxd3 {[%clk 0:01:59]}  Rxd3 {[%clk 0:01:31]} 29. Rac1 {[%clk 0:01:49]}  Rdc3 {[%clk 0:01:28]} 30. Rcd1 {[%clk 0:01:44]}  Bc5+ {[%clk 0:01:28]} 31. Kh1 {[%clk 0:01:45]}  Rf2 {[%clk 0:01:28]} 32. Re4 {[%clk 0:01:18]}  Rcc2 {[%clk 0:01:20]} 33. e6 {[%clk 0:01:12]}  fxe6 {[%clk 0:01:17]} 34. fxe6 {[%clk 0:01:13]}  Rfe2 {[%clk 0:01:14]} 35. Re1 {[%clk 0:01:12]}  Rxe4 {[%clk 0:00:57]} 36. Rxe4 {[%clk 0:01:11]}  Be7 {[%clk 0:00:58]} 37. Rd4 {[%clk 0:01:05]}  Re2 {[%clk 0:00:57]} 38. Rd7 {[%clk 0:01:05]}  Rxe6 {[%clk 0:00:55]} 39. Rxc7+ {[%clk 0:01:05]}  Kd8 {[%clk 0:00:55]} 40. Ra7 {[%clk 0:01:05]}  Bc5 {[%clk 0:00:47]} 41. Rxg7 {[%clk 0:01:02]}  Re2 {[%clk 0:00:39]} 42. Rxh7 {[%clk 0:00:53]}  Rxa2 {[%clk 0:00:39]} 43. h4 {[%clk 0:00:50]}  Rb2 {[%clk 0:00:37]} 44. h5 {[%clk 0:00:49]}  Rxb3 {[%clk 0:00:37]} 45. h6 {[%clk 0:00:48]}  Rb4 {[%clk 0:00:30]} 46. Bg5+ {[%clk 0:00:47]}  Ke8 {[%clk 0:00:30]} 47. Rc7 {[%clk 0:00:44]}  Bd6 {[%clk 0:00:28]} 48. Rc8+ {[%clk 0:00:20]}  Kf7 {[%clk 0:00:18]} 49. Kg1 {[%clk 0:00:21]}  Kg6 {[%clk 0:00:13]} 50. Rg8+ {[%clk 0:00:20]}  Kh7 {[%clk 0:00:10]} 51. Rg7+ {[%clk 0:00:20]}  Kh8 {[%clk 0:00:10]} 52. Bf6 {[%clk 0:00:21]}  Rf4 {[%clk 0:00:06]} 53. Bc3 {[%clk 0:00:19]}  Bc5+ {[%clk 0:00:03]} 54. Kh2 {[%clk 0:00:17]}  Bd4 {[%clk 0:00:04]} 55. Bd2 {[%clk 0:00:15]}  Rh4+ {[%clk 0:00:04]} 56. Kg3 {[%clk 0:00:15]}  Rh5 {[%clk 0:00:04]} 57. Rd7 {[%clk 0:00:15]}  Be5+ {[%clk 0:00:04]} 58. Kg4 {[%clk 0:00:15]}  Rh1 {[%clk 0:00:04]} 59. Kf5 {[%clk 0:00:15]}  Bb2 {[%clk 0:00:03]} 60. Kg6 {[%clk 0:00:15]}  Rf1 {[%clk 0:00:02]} 61. Rd8+ {[%clk 0:00:15]}  Rf8 {[%clk 0:00:03]} 62. Rxf8# {[%clk 0:00:14]} 1-0


[Site "https://www.chess.com"]

[Event "Titled Tuesday Blitz April 4 Late 2023"]
[White "Erzhanov, Arman"]
[Black "Romanchuk, Viktor"]
[WhiteFideId "4138821"]
[BlackFideId "14109271"]
[WhiteElo "2138"]
[BlackElo "2242"]
[Result "1-0"]
[Round "10"]
[TimeControl "180+2"]
[Date "2023.04.04"]
[WhiteClock "0:01:03"]
[BlackClock "0:00:01"]

1. e4 {[%clk 0:02:45]}  c6 {[%clk 0:02:58]} 2. d4 {[%clk 0:02:45]}  d5 {[%clk 0:02:58]} 3. exd5 {[%clk 0:02:45]}  cxd5 {[%clk 0:02:58]} 4. c4 {[%clk 0:02:46]}  Nf6 {[%clk 0:02:59]} 5. Nc3 {[%clk 0:02:46]}  g6 {[%clk 0:02:57]} 6. cxd5 {[%clk 0:02:46]}  Bg7 {[%clk 0:02:52]} 7. Bc4 {[%clk 0:02:46]}  O-O {[%clk 0:02:51]} 8. Nge2 {[%clk 0:02:47]}  Nbd7 {[%clk 0:02:30]} 9. Nf4 {[%clk 0:02:46]}  a6 {[%clk 0:02:29]} 10. a4 {[%clk 0:02:45]}  b6 {[%clk 0:02:27]} 11. O-O {[%clk 0:02:41]}  Bb7 {[%clk 0:02:28]} 12. Re1 {[%clk 0:02:41]}  Re8 {[%clk 0:02:26]} 13. Bb3 {[%clk 0:02:39]}  Nf8 {[%clk 0:02:11]} 14. Be3 {[%clk 0:02:25]}  h6 {[%clk 0:02:07]} 15. h4 {[%clk 0:02:23]}  Qd7 {[%clk 0:01:30]} 16. f3 {[%clk 0:02:11]}  N8h7 {[%clk 0:00:54]} 17. Qd2 {[%clk 0:01:59]}  b5 {[%clk 0:00:47]} 18. axb5 {[%clk 0:01:46]}  axb5 {[%clk 0:00:48]} 19. Rxa8 {[%clk 0:01:46]}  Rxa8 {[%clk 0:00:47]} 20. Nd3 {[%clk 0:01:44]}  Nxd5 {[%clk 0:00:38]} 21. Nc5 {[%clk 0:01:28]}  Qf5 {[%clk 0:00:07]} 22. Nxb7 {[%clk 0:01:24]}  Nxe3 {[%clk 0:00:07]} 23. Qxe3 {[%clk 0:01:17]}  b4 {[%clk 0:00:07]} 24. Nd5 {[%clk 0:01:14]}  Kh8 {[%clk 0:00:02]} 25. Nxe7 {[%clk 0:01:12]}  Qd7 {[%clk 0:00:01]} 26. Bxf7 {[%clk 0:01:03]} 1-0


[Site "https://www.chess.com"]

[Event "Titled Tuesday Blitz April 4 Late 2023"]
[White "Moore, Nicholas"]
[Black "Jimenez Almeida, Luis David"]
[WhiteFideId "4303709"]
[BlackFideId "22242244"]
[WhiteElo "2460"]
[BlackElo "2245"]
[Result "1-0"]
[Round "10"]
[TimeControl "180+2"]
[Date "2023.04.04"]
[WhiteClock "0:00:12"]
[BlackClock "0:00:02"]

1. d4 {[%clk 0:03:00]}  g6 {[%clk 0:02:59]} 2. c4 {[%clk 0:03:01]}  Bg7 {[%clk 0:02:59]} 3. Nf3 {[%clk 0:02:59]}  c5 {[%clk 0:02:59]} 4. d5 {[%clk 0:02:55]}  b5 {[%clk 0:02:59]} 5. e4 {[%clk 0:02:54]}  d6 {[%clk 0:02:56]} 6. cxb5 {[%clk 0:02:53]}  a6 {[%clk 0:02:56]} 7. Nc3 {[%clk 0:02:51]}  Nf6 {[%clk 0:02:56]} 8. bxa6 {[%clk 0:02:47]}  Qa5 {[%clk 0:02:50]} 9. a7 {[%clk 0:02:38]}  Rxa7 {[%clk 0:02:44]} 10. Bb5+ {[%clk 0:02:36]}  Nfd7 {[%clk 0:02:37]} 11. a4 {[%clk 0:02:30]}  O-O {[%clk 0:02:30]} 12. O-O {[%clk 0:02:29]}  Na6 {[%clk 0:02:28]} 13. Qe2 {[%clk 0:02:10]}  Ne5 {[%clk 0:02:19]} 14. Nd2 {[%clk 0:02:05]}  Nb4 {[%clk 0:02:13]} 15. f4 {[%clk 0:02:02]}  Bg4 {[%clk 0:02:00]} 16. Qf2 {[%clk 0:01:39]}  Ned3 {[%clk 0:01:57]} 17. Qg3 {[%clk 0:01:36]}  Nxc1 {[%clk 0:01:12]} 18. Raxc1 {[%clk 0:01:31]}  Bd7 {[%clk 0:01:08]} 19. Nc4 {[%clk 0:01:31]}  Qc7 {[%clk 0:01:05]} 20. e5 {[%clk 0:01:30]}  Bf5 {[%clk 0:01:04]} 21. Rfd1 {[%clk 0:01:22]}  h5 {[%clk 0:00:51]} 22. h3 {[%clk 0:01:09]}  Rb7 {[%clk 0:00:42]} 23. Rd2 {[%clk 0:01:02]}  Rd8 {[%clk 0:00:36]} 24. Re1 {[%clk 0:01:00]}  Kh7 {[%clk 0:00:33]} 25. Qh4 {[%clk 0:00:57]}  dxe5 {[%clk 0:00:20]} 26. fxe5 {[%clk 0:00:50]}  Nd3 {[%clk 0:00:20]} 27. d6 {[%clk 0:00:39]}  exd6 {[%clk 0:00:18]} 28. exd6 {[%clk 0:00:39]}  Rxd6 {[%clk 0:00:16]} 29. Nxd6 {[%clk 0:00:39]}  Nxe1 {[%clk 0:00:13]} 30. Nxb7 {[%clk 0:00:38]}  Bd4+ {[%clk 0:00:07]} 31. Kh1 {[%clk 0:00:31]}  Nf3 {[%clk 0:00:04]} 32. gxf3 {[%clk 0:00:27]}  Qxb7 {[%clk 0:00:04]} 33. Ne4 {[%clk 0:00:23]}  Qd5 {[%clk 0:00:02]} 34. Nf6+ {[%clk 0:00:15]}  Bxf6 {[%clk 0:00:02]} 35. Rxd5 {[%clk 0:00:15]}  Bxh4 {[%clk 0:00:02]} 36. a5 {[%clk 0:00:12]} 1-0


[Site "https://www.chess.com"]

[Event "Titled Tuesday Blitz April 4 Late 2023"]
[White "feuervogel1000000"]
[Black "Fiorito, Joaquin"]
[BlackFideId "180173"]
[WhiteElo "2305"]
[BlackElo "2157"]
[Result "0-1"]
[Round "10"]
[TimeControl "180+2"]
[Date "2023.04.04"]
[WhiteClock "0:00:06"]
[BlackClock "0:00:40"]

1. e4 {[%clk 0:02:59]}  c6 {[%clk 0:03:00]} 2. d4 {[%clk 0:02:59]}  d5 {[%clk 0:03:00]} 3. e5 {[%clk 0:02:59]}  Bf5 {[%clk 0:03:00]} 4. Nf3 {[%clk 0:02:58]}  e6 {[%clk 0:03:01]} 5. Be2 {[%clk 0:02:59]}  c5 {[%clk 0:03:01]} 6. O-O {[%clk 0:03:00]}  Ne7 {[%clk 0:02:56]} 7. c3 {[%clk 0:03:00]}  Bg4 {[%clk 0:02:53]} 8. Nbd2 {[%clk 0:02:58]}  Nbc6 {[%clk 0:02:51]} 9. h3 {[%clk 0:02:57]}  Bxf3 {[%clk 0:02:51]} 10. Nxf3 {[%clk 0:02:58]}  Nf5 {[%clk 0:02:49]} 11. g4 {[%clk 0:02:57]}  Nh4 {[%clk 0:02:47]} 12. Nxh4 {[%clk 0:02:41]}  Qxh4 {[%clk 0:02:48]} 13. Qd3 {[%clk 0:02:36]}  h5 {[%clk 0:02:22]} 14. Kg2 {[%clk 0:02:12]}  hxg4 {[%clk 0:02:16]} 15. Bxg4 {[%clk 0:02:12]}  g6 {[%clk 0:02:13]} 16. Bf4 {[%clk 0:02:11]}  Qd8 {[%clk 0:02:02]} 17. Bg3 {[%clk 0:01:50]}  Be7 {[%clk 0:01:58]} 18. dxc5 {[%clk 0:01:44]}  Bxc5 {[%clk 0:01:51]} 19. Rad1 {[%clk 0:01:43]}  Qc7 {[%clk 0:01:45]} 20. b4 {[%clk 0:01:40]}  Be7 {[%clk 0:01:41]} 21. Rfe1 {[%clk 0:01:13]}  O-O-O {[%clk 0:01:30]} 22. b5 {[%clk 0:01:11]}  Na5 {[%clk 0:01:29]} 23. Qf3 {[%clk 0:01:09]}  Bh4 {[%clk 0:00:58]} 24. Bxh4 {[%clk 0:01:02]}  Rxh4 {[%clk 0:00:57]} 25. Kg3 {[%clk 0:01:00]}  g5 {[%clk 0:00:49]} 26. Qe3 {[%clk 0:00:39]}  f5 {[%clk 0:00:40]} 27. Qxg5 {[%clk 0:00:37]}  Rhh8 {[%clk 0:00:40]} 28. Bxf5 {[%clk 0:00:25]}  exf5 {[%clk 0:00:41]} 29. Qxf5+ {[%clk 0:00:26]}  Kb8 {[%clk 0:00:41]} 30. Re3 {[%clk 0:00:09]}  Nc4 {[%clk 0:00:41]} 31. Red3 {[%clk 0:00:07]}  Nb2 {[%clk 0:00:39]} 32. Rxd5 {[%clk 0:00:06]}  Nxd1 {[%clk 0:00:39]} 33. Rxd8+ {[%clk 0:00:06]}  Rxd8 {[%clk 0:00:40]} 34. Qf4 {[%clk 0:00:06]}  Nxc3 {[%clk 0:00:40]} 35. e6 {[%clk 0:00:06]}  Ne2+ {[%clk 0:00:40]} 0-1


[Site "https://www.chess.com"]

[Event "Titled Tuesday Blitz April 4 Late 2023"]
[White "Meunier-Pion, Jean"]
[Black "Skvortsov, Andrei"]
[WhiteFideId "20685327"]
[BlackFideId "24108600"]
[WhiteElo "2124"]
[BlackElo "2259"]
[Result "1-0"]
[Round "10"]
[TimeControl "180+2"]
[Date "2023.04.04"]
[WhiteClock "0:01:29"]
[BlackClock "0:01:18"]

1. d4 {[%clk 0:03:00]}  d5 {[%clk 0:02:56]} 2. c4 {[%clk 0:02:57]}  c6 {[%clk 0:02:55]} 3. Nc3 {[%clk 0:02:57]}  Nf6 {[%clk 0:02:53]} 4. e3 {[%clk 0:02:56]}  Bf5 {[%clk 0:02:52]} 5. cxd5 {[%clk 0:02:52]}  cxd5 {[%clk 0:02:48]} 6. Qb3 {[%clk 0:02:52]}  Qd7 {[%clk 0:02:47]} 7. Nf3 {[%clk 0:02:41]}  Nc6 {[%clk 0:02:41]} 8. Ne5 {[%clk 0:02:34]}  Qc7 {[%clk 0:02:38]} 9. Nxd5 {[%clk 0:02:32]}  Nxd5 {[%clk 0:02:36]} 10. Qxd5 {[%clk 0:02:32]}  Nxe5 {[%clk 0:02:33]} 11. Qxe5 {[%clk 0:02:28]}  Qxe5 {[%clk 0:02:30]} 12. dxe5 {[%clk 0:02:29]}  O-O-O {[%clk 0:02:23]} 13. f3 {[%clk 0:02:22]}  Bd3 {[%clk 0:02:21]} 14. Bxd3 {[%clk 0:02:21]}  Rxd3 {[%clk 0:02:22]} 15. Ke2 {[%clk 0:02:21]}  Rd5 {[%clk 0:02:20]} 16. e4 {[%clk 0:02:19]}  Rxe5 {[%clk 0:02:13]} 17. Bf4 {[%clk 0:02:19]}  Rc5 {[%clk 0:02:12]} 18. Rac1 {[%clk 0:02:19]}  Rc6 {[%clk 0:02:07]} 19. b4 {[%clk 0:02:13]}  a6 {[%clk 0:02:01]} 20. a4 {[%clk 0:02:11]}  e5 {[%clk 0:01:59]} 21. b5 {[%clk 0:02:10]}  Rxc1 {[%clk 0:01:58]} 22. Rxc1+ {[%clk 0:02:10]}  Kd7 {[%clk 0:01:56]} 23. Bxe5 {[%clk 0:02:10]}  axb5 {[%clk 0:01:54]} 24. axb5 {[%clk 0:02:09]}  f6 {[%clk 0:01:54]} 25. Bf4 {[%clk 0:02:03]}  b6 {[%clk 0:01:50]} 26. Rc7+ {[%clk 0:02:03]}  Ke6 {[%clk 0:01:45]} 27. Rc6+ {[%clk 0:02:02]}  Kd7 {[%clk 0:01:45]} 28. Rxb6 {[%clk 0:02:03]}  Be7 {[%clk 0:01:41]} 29. Rb7+ {[%clk 0:02:01]}  Ke6 {[%clk 0:01:40]} 30. Bd2 {[%clk 0:01:52]}  Ra8 {[%clk 0:01:37]} 31. f4 {[%clk 0:01:51]}  Ra2 {[%clk 0:01:32]} 32. Kd3 {[%clk 0:01:51]}  g6 {[%clk 0:01:31]} 33. f5+ {[%clk 0:01:46]}  gxf5 {[%clk 0:01:30]} 34. exf5+ {[%clk 0:01:47]}  Kxf5 {[%clk 0:01:28]} 35. Rxe7 {[%clk 0:01:47]}  Rb2 {[%clk 0:01:28]} 36. Rxh7 {[%clk 0:01:44]}  Ke6 {[%clk 0:01:24]} 37. Rh5 {[%clk 0:01:40]}  f5 {[%clk 0:01:23]} 38. g3 {[%clk 0:01:37]}  Rb3+ {[%clk 0:01:23]} 39. Kc4 {[%clk 0:01:37]}  Rb2 {[%clk 0:01:23]} 40. Bc3 {[%clk 0:01:37]}  Rb1 {[%clk 0:01:21]} 41. Rh6+ {[%clk 0:01:37]}  Kd7 {[%clk 0:01:20]} 42. b6 {[%clk 0:01:34]}  Kc8 {[%clk 0:01:20]} 43. Kd5 {[%clk 0:01:30]}  Kb7 {[%clk 0:01:20]} 44. Bd4 {[%clk 0:01:30]}  Rb5+ {[%clk 0:01:19]} 45. Bc5 {[%clk 0:01:28]}  f4 {[%clk 0:01:17]} 46. Rh7+ {[%clk 0:01:29]}  Kb8 {[%clk 0:01:18]} 47. Kc6 {[%clk 0:01:29]} 1-0


[Site "https://www.chess.com"]